[Event "*** Titled Tuesday Blitz"]
[Site "Chess.com"]
[Date "2020.04.28"]
[Round "8"]
[White "Tapuah"]
[Black "kuli4ik"]
[Result "1-0"]
[WhiteElo "2846"]
[BlackElo "2712"]
[TimeControl "180+1"]
[EndTime "11:36:00 PDT"]
[Termination "Tapuah won by resignation"]

1. e4 {[%clk 0:03:00.3]} 1... Nf6 {[%clk 0:03:00.2]} 2. e5 {[%clk 0:02:59.7]}
2... Nd5 {[%clk 0:03:00.4]} 3. d4 {[%clk 0:02:59.8]} 3... d6 {[%clk 0:03:00.7]}
4. Nf3 {[%clk 0:03:00.4]} 4... Nb6 {[%clk 0:03:00.7]} 5. Be2 {[%clk 0:02:53.7]}
5... g6 {[%clk 0:03:00.8]} 6. O-O {[%clk 0:02:51.8]} 6... Bg7 {[%clk 0:03:01.1]}
7. exd6 {[%clk 0:02:49]} 7... cxd6 {[%clk 0:03:00.9]} 8. c4 {[%clk 0:02:46]}
8... O-O {[%clk 0:03:00.9]} 9. Nc3 {[%clk 0:02:45.4]} 9... e5 {[%clk 0:03:00.2]}
10. Bg5 {[%clk 0:02:36.7]} 10... f6 {[%clk 0:02:54.4]} 11. Be3 {[%clk
0:02:36.5]} 11... Nc6 {[%clk 0:02:43.9]} 12. dxe5 {[%clk 0:02:25.5]} 12... dxe5
{[%clk 0:02:43.7]} 13. c5 {[%clk 0:02:25.6]} 13... Nd7 {[%clk 0:02:34.1]} 14.
Ne4 {[%clk 0:02:22.7]} 14... Qe7 {[%clk 0:02:23.3]} 15. Bc4+ {[%clk 0:02:17]}
15... Kh8 {[%clk 0:02:23]} 16. Qd6 {[%clk 0:02:12.5]} 16... f5 {[%clk
0:01:48.9]} 17. Qxe7 {[%clk 0:02:08.6]} 17... Nxe7 {[%clk 0:01:48.7]} 18. Nd6
{[%clk 0:02:09.2]} 18... f4 {[%clk 0:01:32]} 19. Bd2 {[%clk 0:01:55]} 19... Nxc5
{[%clk 0:01:24.1]} 20. Ng5 {[%clk 0:01:36.9]} 20... Bf6 {[%clk 0:01:14.7]} 21.
Bb4 {[%clk 0:01:24.7]} 21... b6 {[%clk 0:01:07.5]} 22. Nge4 {[%clk 0:01:18.6]}
22... Kg7 {[%clk 0:00:52.6]} 23. Nxc5 {[%clk 0:01:13.3]} 23... bxc5 {[%clk
0:00:52.3]} 24. Bxc5 {[%clk 0:01:14]} 24... Rd8 {[%clk 0:00:45.5]} 25. Rad1
{[%clk 0:01:10.6]} 25... Nf5 {[%clk 0:00:36.7]} 26. Ne4 {[%clk 0:00:51.2]} 26...
Nd4 {[%clk 0:00:21.2]} 27. Nxf6 {[%clk 0:00:48.3]} 27... Kxf6 {[%clk 0:00:22.1]}
28. Bxd4 {[%clk 0:00:41.3]} 28... exd4 {[%clk 0:00:19.6]} 29. Rfe1 {[%clk
0:00:41.1]} 29... Bf5 {[%clk 0:00:19]} 30. Rd2 {[%clk 0:00:40.1]} 30... d3
{[%clk 0:00:16.9]} 31. f3 {[%clk 0:00:34.9]} 31... Rd4 {[%clk 0:00:16.7]} 32. b3
{[%clk 0:00:34.1]} 32... a5 {[%clk 0:00:16.9]} 33. a4 {[%clk 0:00:33.1]} 33...
Rc8 {[%clk 0:00:14.3]} 34. Kf2 {[%clk 0:00:32.5]} 34... Rdxc4 {[%clk 0:00:13]}
35. bxc4 {[%clk 0:00:32]} 35... Rxc4 {[%clk 0:00:13.9]} 36. Ra1 {[%clk
0:00:31.5]} 36... Ke5 {[%clk 0:00:12.2]} 37. Rb2 {[%clk 0:00:29.1]} 37... Kd4
{[%clk 0:00:09.8]} 38. Ke1 {[%clk 0:00:28.4]} 38... Ke3 {[%clk 0:00:07.8]} 39.
Rd1 {[%clk 0:00:20.2]} 39... Rxa4 {[%clk 0:00:05.8]} 40. Rb7 {[%clk 0:00:19.8]}
40... Ra2 {[%clk 0:00:04.5]} 41. Re7+ {[%clk 0:00:19.3]} 41... Kd4 {[%clk
0:00:04.9]} 42. Rd2 {[%clk 0:00:19.4]} 42... Ra1+ {[%clk 0:00:04.8]} 43. Rd1
{[%clk 0:00:18.5]} 43... h5 {[%clk 0:00:05.7]} 44. Rxa1 {[%clk 0:00:18.1]} 1-0

[Event "*** Titled Tuesday Blitz"]
[Site "Chess.com"]
[Date "2020.04.28"]
[Round "8"]
[White "Klavdia_Nik"]
[Black "AnnaChessLook"]
[Result "0-1"]
[WhiteElo "2043"]
[BlackElo "2275"]
[TimeControl "180+1"]
[EndTime "11:36:00 PDT"]
[Termination "AnnaChessLook won on time"]

1. Nf3 {[%clk 0:03:00.9]} 1... c5 {[%clk 0:02:55.3]} 2. c4 {[%clk 0:02:58.9]}
2... Nf6 {[%clk 0:02:55.5]} 3. b3 {[%clk 0:02:58.7]} 3... g6 {[%clk 0:02:55.8]}
4. Bb2 {[%clk 0:02:59.3]} 4... Bg7 {[%clk 0:02:56.3]} 5. g3 {[%clk 0:02:59.9]}
5... O-O {[%clk 0:02:56.8]} 6. Bg2 {[%clk 0:03:00.4]} 6... Nc6 {[%clk
0:02:57.4]} 7. O-O {[%clk 0:03:00.4]} 7... d5 {[%clk 0:02:57.9]} 8. d3 {[%clk
0:02:58]} 8... d4 {[%clk 0:02:56.9]} 9. Nbd2 {[%clk 0:02:58.4]} 9... e5 {[%clk
0:02:57.1]} 10. b4 {[%clk 0:02:57.9]} 10... cxb4 {[%clk 0:02:55.7]} 11. a3
{[%clk 0:02:58.3]} 11... Re8 {[%clk 0:02:51.9]} 12. axb4 {[%clk 0:02:57.5]}
12... Nxb4 {[%clk 0:02:52.8]} 13. Ba3 {[%clk 0:02:55.9]} 13... Nc6 {[%clk
0:02:51.6]} 14. Ng5 {[%clk 0:02:48]} 14... Qc7 {[%clk 0:02:44]} 15. Qa4 {[%clk
0:02:43.4]} 15... Bd7 {[%clk 0:02:42.3]} 16. Nge4 {[%clk 0:02:18.6]} 16... Nxe4
{[%clk 0:02:40]} 17. Nxe4 {[%clk 0:02:18.9]} 17... a5 {[%clk 0:02:40.5]} 18. Bd6
{[%clk 0:01:30.9]} 18... Qc8 {[%clk 0:02:31.7]} 19. Qa3 {[%clk 0:01:29.4]} 19...
b6 {[%clk 0:02:16.8]} 20. Rfb1 {[%clk 0:01:27.4]} 20... f5 {[%clk 0:02:03.5]}
21. Nd2 {[%clk 0:01:26.6]} 21... Qa6 {[%clk 0:01:52.5]} 22. Bd5+ {[%clk
0:01:19.4]} 22... Kh8 {[%clk 0:01:52.4]} 23. Ra2 {[%clk 0:01:07.1]} 23... Ra7
{[%clk 0:01:36.3]} 24. Rab2 {[%clk 0:01:05.5]} 24... Rb7 {[%clk 0:01:34.9]} 25.
Kg2 {[%clk 0:00:53.7]} 25... Rc8 {[%clk 0:01:29.2]} 26. Nb3 {[%clk 0:00:49.9]}
26... Nd8 {[%clk 0:00:56.1]} 27. Bxb7 {[%clk 0:00:43.5]} 27... Qxb7+ {[%clk
0:00:57]} 28. Kg1 {[%clk 0:00:30.2]} 28... Qc6 {[%clk 0:00:54.6]} 29. Nd2 {[%clk
0:00:20.8]} 29... b5 {[%clk 0:00:43.2]} 30. cxb5 {[%clk 0:00:17.2]} 30... Qd5
{[%clk 0:00:41.8]} 31. Nc4 {[%clk 0:00:09.1]} 31... Qe6 {[%clk 0:00:33.4]} 32.
b6 {[%clk 0:00:07.1]} 32... Nb7 {[%clk 0:00:31.8]} 33. Bc7 {[%clk 0:00:06.5]}
33... Bc6 {[%clk 0:00:31.6]} 34. Rc2 {[%clk 0:00:06]} 34... Qd5 {[%clk
0:00:31.8]} 35. f3 {[%clk 0:00:06.3]} 35... e4 {[%clk 0:00:31]} 36. Nd2 {[%clk
0:00:05.6]} 36... exf3 {[%clk 0:00:29.5]} 37. Nxf3 {[%clk 0:00:05.6]} 37... Bh6
{[%clk 0:00:24.1]} 38. Qb3 {[%clk 0:00:05.9]} 38... Be3+ {[%clk 0:00:22.8]} 39.
Kg2 {[%clk 0:00:06.3]} 39... Qd7 {[%clk 0:00:20.8]} 40. Qc4 {[%clk 0:00:05.9]}
40... Bd5 {[%clk 0:00:19.9]} 41. Qb5 {[%clk 0:00:04.9]} 41... Qf7 {[%clk
0:00:19.1]} 42. Be5+ {[%clk 0:00:03.1]} 42... Kg8 {[%clk 0:00:18.4]} 0-1

[Event "*** Titled Tuesday Blitz"]
[Site "Chess.com"]
[Date "2020.04.28"]
[Round "8"]
[White "Batsai"]
[Black "dukicz123"]
[Result "0-1"]
[WhiteElo "2268"]
[BlackElo "2503"]
[TimeControl "180+1"]
[EndTime "11:36:02 PDT"]
[Termination "dukicz123 won on time"]

1. e4 {[%clk 0:03:00.9]} 1... e5 {[%clk 0:02:59.7]} 2. Nf3 {[%clk 0:03:00.4]}
2... Nc6 {[%clk 0:03:00.1]} 3. Bb5 {[%clk 0:03:00.9]} 3... a6 {[%clk 0:03:00]}
4. Ba4 {[%clk 0:03:00.3]} 4... Nf6 {[%clk 0:03:00.7]} 5. O-O {[%clk 0:03:00.2]}
5... Be7 {[%clk 0:03:01.3]} 6. Re1 {[%clk 0:02:59.7]} 6... b5 {[%clk 0:03:02]}
7. Bb3 {[%clk 0:02:59.7]} 7... O-O {[%clk 0:03:02.9]} 8. c3 {[%clk 0:02:58.6]}
8... d5 {[%clk 0:03:03.1]} 9. exd5 {[%clk 0:02:58.1]} 9... Nxd5 {[%clk 0:03:04]}
10. Nxe5 {[%clk 0:02:58.6]} 10... Nxe5 {[%clk 0:03:04.9]} 11. Rxe5 {[%clk
0:02:59.2]} 11... c6 {[%clk 0:03:05.8]} 12. d3 {[%clk 0:02:59.1]} 12... Bd6
{[%clk 0:03:06]} 13. Re1 {[%clk 0:02:58.1]} 13... Bf5 {[%clk 0:03:06.1]} 14. Qf3
{[%clk 0:02:48.8]} 14... Re8 {[%clk 0:03:06.2]} 15. Be3 {[%clk 0:02:31.9]} 15...
Qd7 {[%clk 0:02:57.5]} 16. h3 {[%clk 0:02:18.4]} 16... Bxd3 {[%clk 0:02:49.2]}
17. Nd2 {[%clk 0:02:13.8]} 17... Nxe3 {[%clk 0:02:24.2]} 18. Rxe3 {[%clk
0:02:08]} 18... Rxe3 {[%clk 0:02:24.2]} 19. fxe3 {[%clk 0:01:54.2]} 19... Bg6
{[%clk 0:02:19.7]} 20. Rd1 {[%clk 0:01:45.1]} 20... Qe7 {[%clk 0:02:17.1]} 21.
Nf1 {[%clk 0:01:43.1]} 21... Rc8 {[%clk 0:01:55.2]} 22. a4 {[%clk 0:01:31.4]}
22... c5 {[%clk 0:01:51.7]} 23. axb5 {[%clk 0:01:29.8]} 23... axb5 {[%clk
0:01:52.6]} 24. Bd5 {[%clk 0:01:20.6]} 24... h6 {[%clk 0:01:49.3]} 25. e4 {[%clk
0:00:59.3]} 25... Re8 {[%clk 0:01:43.1]} 26. Bc6 {[%clk 0:00:55.4]} 26... Rb8
{[%clk 0:01:33]} 27. Qd3 {[%clk 0:00:51]} 27... Bf4 {[%clk 0:01:13.8]} 28. Ne3
{[%clk 0:00:34.7]} 28... c4 {[%clk 0:01:02.1]} 29. Qe2 {[%clk 0:00:29.2]} 29...
Qc5 {[%clk 0:01:00.7]} 30. Rd4 {[%clk 0:00:18.5]} 30... Qxc6 {[%clk 0:00:59.8]}
31. Nd5 {[%clk 0:00:18.7]} 31... Bg5 {[%clk 0:00:53.8]} 32. Qg4 {[%clk
0:00:16.6]} 32... Re8 {[%clk 0:00:50.3]} 33. h4 {[%clk 0:00:14]} 33... Bd8
{[%clk 0:00:50.7]} 34. h5 {[%clk 0:00:11.9]} 34... Bh7 {[%clk 0:00:38.6]} 35.
Nb4 {[%clk 0:00:10.6]} 35... Qe6 {[%clk 0:00:31.1]} 36. Qxe6 {[%clk 0:00:08]}
36... fxe6 {[%clk 0:00:32]} 37. Rd6 {[%clk 0:00:07.9]} 37... Be7 {[%clk
0:00:31.1]} 38. Rc6 {[%clk 0:00:05.1]} 38... Bxe4 {[%clk 0:00:31]} 39. Rc7
{[%clk 0:00:04.4]} 39... Bd6 {[%clk 0:00:26.3]} 40. Rd7 {[%clk 0:00:03.8]} 40...
Bc5+ {[%clk 0:00:26.6]} 41. Kf1 {[%clk 0:00:02.4]} 41... Rf8+ {[%clk 0:00:23.1]}
42. Ke2 {[%clk 0:00:02.8]} 42... Rf2+ {[%clk 0:00:22.8]} 43. Ke1 {[%clk
0:00:02.6]} 43... Rxb2 {[%clk 0:00:21.2]} 44. Na6 {[%clk 0:00:03.5]} 44... Bf2+
{[%clk 0:00:20]} 45. Kd1 {[%clk 0:00:02]} 45... Bxg2 {[%clk 0:00:20.1]} 46. Nc7
{[%clk 0:00:01.5]} 46... Be3 {[%clk 0:00:18.6]} 47. Ke1 {[%clk 0:00:01.5]} 47...
Bf3 {[%clk 0:00:18.8]} 0-1

[Event "*** Titled Tuesday Blitz"]
[Site "Chess.com"]
[Date "2020.04.28"]
[Round "8"]
[White "hongnhung1234"]
[Black "Kopytkin"]
[Result "0-1"]
[WhiteElo "2212"]
[BlackElo "2383"]
[TimeControl "180+1"]
[EndTime "11:36:02 PDT"]
[Termination "Kopytkin won by checkmate"]

1. e4 {[%clk 0:03:00.9]} 1... c6 {[%clk 0:03:00]} 2. d4 {[%clk 0:03:00.7]} 2...
d5 {[%clk 0:03:00.5]} 3. f3 {[%clk 0:03:01]} 3... e5 {[%clk 0:02:59.7]} 4. Nc3
{[%clk 0:02:55]} 4... exd4 {[%clk 0:02:44.7]} 5. Qxd4 {[%clk 0:02:54.8]} 5...
Nf6 {[%clk 0:02:44.8]} 6. Bg5 {[%clk 0:02:49.1]} 6... Be7 {[%clk 0:02:45.2]} 7.
O-O-O {[%clk 0:02:46.9]} 7... c5 {[%clk 0:02:41.9]} 8. Bb5+ {[%clk 0:02:38.8]}
8... Nc6 {[%clk 0:02:41.1]} 9. Qa4 {[%clk 0:02:33.1]} 9... d4 {[%clk 0:02:39.8]}
10. Bxf6 {[%clk 0:02:23.4]} 10... Bxf6 {[%clk 0:02:39.3]} 11. Nd5 {[%clk
0:02:22.3]} 11... Bd7 {[%clk 0:02:26.1]} 12. Ne2 {[%clk 0:01:54.4]} 12... a6
{[%clk 0:02:19.9]} 13. Bxc6 {[%clk 0:01:53.9]} 13... Bxc6 {[%clk 0:02:20.1]} 14.
Nxf6+ {[%clk 0:01:53.9]} 14... Qxf6 {[%clk 0:02:17.9]} 15. Qa3 {[%clk
0:01:40.2]} 15... b6 {[%clk 0:02:10.6]} 16. Kb1 {[%clk 0:01:13.3]} 16... Bb5
{[%clk 0:01:57.7]} 17. Ng3 {[%clk 0:01:03.3]} 17... O-O {[%clk 0:01:57.1]} 18.
Rhe1 {[%clk 0:00:55.7]} 18... Qe5 {[%clk 0:01:51.2]} 19. Nf5 {[%clk 0:00:42.1]}
19... Rfd8 {[%clk 0:01:37.5]} 20. g3 {[%clk 0:00:36]} 20... g6 {[%clk
0:01:37.5]} 21. Nh6+ {[%clk 0:00:34.8]} 21... Kg7 {[%clk 0:01:36.4]} 22. Ng4
{[%clk 0:00:34.7]} 22... Qe6 {[%clk 0:01:32.8]} 23. Qb3 {[%clk 0:00:27]} 23...
Bc4 {[%clk 0:01:31.4]} 24. Qa3 {[%clk 0:00:22.6]} 24... Rac8 {[%clk 0:01:30.4]}
25. e5 {[%clk 0:00:20.3]} 25... b5 {[%clk 0:01:28]} 26. Nf6 {[%clk 0:00:19]}
26... Bd5 {[%clk 0:01:25.1]} 27. Qd3 {[%clk 0:00:18]} 27... Bxa2+ {[%clk
0:01:22.3]} 28. Ka1 {[%clk 0:00:17.8]} 28... Bd5 {[%clk 0:01:22.8]} 29. Qd2
{[%clk 0:00:17.2]} 29... h6 {[%clk 0:01:17.9]} 30. Ng4 {[%clk 0:00:16.7]} 30...
Rh8 {[%clk 0:01:16.4]} 31. Nf6 {[%clk 0:00:16.3]} 31... b4 {[%clk 0:01:09.2]}
32. f4 {[%clk 0:00:14.4]} 32... Bf3 {[%clk 0:01:07]} 33. Rc1 {[%clk 0:00:11.6]}
33... a5 {[%clk 0:00:46.5]} 34. Qf2 {[%clk 0:00:11.2]} 34... Qc6 {[%clk
0:00:33.2]} 35. g4 {[%clk 0:00:09.2]} 35... Rhd8 {[%clk 0:00:20.7]} 36. f5
{[%clk 0:00:08.2]} 36... c4 {[%clk 0:00:18.5]} 37. fxg6 {[%clk 0:00:07.2]} 37...
fxg6 {[%clk 0:00:18.9]} 38. h4 {[%clk 0:00:05.9]} 38... d3 {[%clk 0:00:19.1]}
39. cxd3 {[%clk 0:00:05]} 39... Qa4+ {[%clk 0:00:19.4]} 40. Kb1 {[%clk
0:00:05.2]} 40... b3 {[%clk 0:00:20]} 41. Rxc4 {[%clk 0:00:04.2]} 41... Rxc4
{[%clk 0:00:19.1]} 42. dxc4 {[%clk 0:00:04.2]} 42... Qa2+ {[%clk 0:00:19.6]} 43.
Kc1 {[%clk 0:00:04.2]} 43... Qa1# {[%clk 0:00:19.7]} 0-1

[Event "*** Titled Tuesday Blitz"]
[Site "Chess.com"]
[Date "2020.04.28"]
[Round "8"]
[White "Supernotar"]
[Black "chito89"]
[Result "1-0"]
[WhiteElo "2629"]
[BlackElo "2752"]
[TimeControl "180+1"]
[EndTime "11:36:03 PDT"]
[Termination "Supernotar won by resignation"]

1. d4 {[%clk 0:03:00.9]} 1... Nf6 {[%clk 0:02:58.7]} 2. c4 {[%clk 0:03:00.8]}
2... e6 {[%clk 0:02:59]} 3. Nf3 {[%clk 0:03:00.6]} 3... c5 {[%clk 0:02:56.6]} 4.
d5 {[%clk 0:03:00]} 4... exd5 {[%clk 0:02:57.1]} 5. cxd5 {[%clk 0:03:00.1]} 5...
d6 {[%clk 0:02:57.6]} 6. Nc3 {[%clk 0:02:59.5]} 6... g6 {[%clk 0:02:58.1]} 7.
Nd2 {[%clk 0:02:57.3]} 7... Nbd7 {[%clk 0:02:55.8]} 8. g3 {[%clk 0:02:56.3]}
8... Bg7 {[%clk 0:02:54.7]} 9. Bg2 {[%clk 0:02:55.4]} 9... O-O {[%clk
0:02:54.8]} 10. O-O {[%clk 0:02:54.6]} 10... Re8 {[%clk 0:02:54]} 11. h3 {[%clk
0:02:53]} 11... b6 {[%clk 0:02:46.9]} 12. Nc4 {[%clk 0:02:48.5]} 12... Ne5
{[%clk 0:02:46.3]} 13. Ne3 {[%clk 0:02:42.9]} 13... Ba6 {[%clk 0:02:41.8]} 14.
Qa4 {[%clk 0:02:25.7]} 14... Qc8 {[%clk 0:02:39.4]} 15. f4 {[%clk 0:02:21]}
15... Ned7 {[%clk 0:02:22.2]} 16. Nc4 {[%clk 0:01:52.6]} 16... Bxc4 {[%clk
0:02:21.6]} 17. Qxc4 {[%clk 0:01:51.7]} 17... a6 {[%clk 0:02:17]} 18. e4 {[%clk
0:01:38.3]} 18... b5 {[%clk 0:02:16.6]} 19. Qd3 {[%clk 0:01:35.5]} 19... c4
{[%clk 0:02:09.6]} 20. Qc2 {[%clk 0:01:34.7]} 20... b4 {[%clk 0:01:37]} 21. Na4
{[%clk 0:01:33.3]} 21... Rb8 {[%clk 0:01:37.6]} 22. Kh2 {[%clk 0:01:28.5]} 22...
Nc5 {[%clk 0:01:35.4]} 23. e5 {[%clk 0:01:16.9]} 23... dxe5 {[%clk 0:01:26.6]}
24. fxe5 {[%clk 0:01:15.4]} 24... Nh5 {[%clk 0:01:23.5]} 25. e6 {[%clk
0:00:57.2]} 25... fxe6 {[%clk 0:01:20]} 26. dxe6 {[%clk 0:00:55.6]} 26... Be5
{[%clk 0:01:09.2]} 27. Bf4 {[%clk 0:00:51.3]} 27... Bxf4 {[%clk 0:01:08.6]} 28.
gxf4 {[%clk 0:00:50.2]} 28... Nxa4 {[%clk 0:01:02]} 29. Qxa4 {[%clk 0:00:49]}
29... Qxe6 {[%clk 0:01:00.7]} 30. Rae1 {[%clk 0:00:45]} 30... Qxe1 {[%clk
0:00:48.5]} 31. Rxe1 {[%clk 0:00:43.6]} 31... Rxe1 {[%clk 0:00:49.1]} 32. Qxa6
{[%clk 0:00:41.4]} 32... Rbe8 {[%clk 0:00:40.3]} 33. Qxc4+ {[%clk 0:00:39.2]}
33... Kg7 {[%clk 0:00:41]} 34. Bf3 {[%clk 0:00:29]} 34... Nf6 {[%clk 0:00:37.4]}
35. Qxb4 {[%clk 0:00:25.2]} 35... Rc1 {[%clk 0:00:31.5]} 36. a4 {[%clk
0:00:22.4]} 36... Rc2+ {[%clk 0:00:29.3]} 37. Kg3 {[%clk 0:00:21.8]} 37... Re3
{[%clk 0:00:26.2]} 38. a5 {[%clk 0:00:18.5]} 38... Nh5+ {[%clk 0:00:18.8]} 39.
Kg4 {[%clk 0:00:17.6]} 39... Rf2 {[%clk 0:00:14.6]} 40. Qb7+ {[%clk 0:00:16.4]}
40... Kh6 {[%clk 0:00:14.6]} 41. a6 {[%clk 0:00:16.1]} 41... Rg2+ {[%clk
0:00:10.3]} 42. Bxg2 {[%clk 0:00:14.6]} 1-0

[Event "*** Titled Tuesday Blitz"]
[Site "Chess.com"]
[Date "2020.04.28"]
[Round "8"]
[White "Tall-guy"]
[Black "otrov-11"]
[Result "0-1"]
[WhiteElo "2128"]
[BlackElo "2383"]
[TimeControl "180+1"]
[EndTime "11:36:04 PDT"]
[Termination "otrov-11 won by resignation"]

1. e4 {[%clk 0:02:49.6]} 1... e6 {[%clk 0:02:59.8]} 2. d4 {[%clk 0:02:49.1]}
2... d5 {[%clk 0:03:00]} 3. Nd2 {[%clk 0:02:49.5]} 3... c5 {[%clk 0:02:59.8]} 4.
exd5 {[%clk 0:02:49.2]} 4... Qxd5 {[%clk 0:03:00.7]} 5. dxc5 {[%clk 0:02:48.7]}
5... Bxc5 {[%clk 0:03:00.2]} 6. Ngf3 {[%clk 0:02:42.5]} 6... Nf6 {[%clk
0:02:57.3]} 7. Bc4 {[%clk 0:02:41.3]} 7... Qd6 {[%clk 0:02:57.1]} 8. O-O {[%clk
0:02:32.6]} 8... O-O {[%clk 0:02:55.5]} 9. Nb3 {[%clk 0:02:31.4]} 9... Qxd1
{[%clk 0:02:46.2]} 10. Rxd1 {[%clk 0:02:32.3]} 10... Be7 {[%clk 0:02:46.7]} 11.
a4 {[%clk 0:02:20.2]} 11... Nc6 {[%clk 0:02:45.3]} 12. a5 {[%clk 0:02:18.5]}
12... a6 {[%clk 0:02:41.1]} 13. Be3 {[%clk 0:02:14.3]} 13... Bd7 {[%clk
0:02:40.9]} 14. Bc5 {[%clk 0:02:05.4]} 14... Rfc8 {[%clk 0:02:37.6]} 15. Bxe7
{[%clk 0:01:59]} 15... Nxe7 {[%clk 0:02:38.5]} 16. Bd3 {[%clk 0:01:58.1]} 16...
Ned5 {[%clk 0:02:33]} 17. Ne5 {[%clk 0:01:54.9]} 17... Be8 {[%clk 0:02:31.9]}
18. c3 {[%clk 0:01:45.9]} 18... Nd7 {[%clk 0:02:03.4]} 19. Nc4 {[%clk 0:01:36]}
19... Nc5 {[%clk 0:01:53.5]} 20. Nxc5 {[%clk 0:01:05.2]} 20... Rxc5 {[%clk
0:01:54.4]} 21. Ne5 {[%clk 0:00:45.4]} 21... h6 {[%clk 0:01:45.5]} 22. Be4
{[%clk 0:00:45.2]} 22... Rb8 {[%clk 0:01:36.2]} 23. Bxd5 {[%clk 0:00:43.1]}
23... exd5 {[%clk 0:01:37.1]} 24. Rd4 {[%clk 0:00:38.9]} 24... f6 {[%clk
0:01:27.4]} 25. Nd3 {[%clk 0:00:34.5]} 25... Rb5 {[%clk 0:01:26.9]} 26. Nb4
{[%clk 0:00:32.7]} 26... Bf7 {[%clk 0:01:26.8]} 27. Re1 {[%clk 0:00:29.7]} 27...
Rxa5 {[%clk 0:01:24.6]} 28. h3 {[%clk 0:00:19.4]} 28... Kf8 {[%clk 0:01:23.5]}
29. Red1 {[%clk 0:00:19]} 29... Rd8 {[%clk 0:01:22.8]} 30. Kf1 {[%clk
0:00:19.1]} 30... Rc5 {[%clk 0:01:22.2]} 31. Ke2 {[%clk 0:00:19]} 31... a5
{[%clk 0:01:22.4]} 32. Nd3 {[%clk 0:00:17.9]} 32... Rc7 {[%clk 0:01:22.3]} 33.
Nf4 {[%clk 0:00:17.2]} 33... Re7+ {[%clk 0:01:19.1]} 34. Kf1 {[%clk 0:00:15.6]}
34... Red7 {[%clk 0:01:18.5]} 35. c4 {[%clk 0:00:15.9]} 35... g5 {[%clk
0:01:06.7]} 36. Nxd5 {[%clk 0:00:15.9]} 36... Bxd5 {[%clk 0:01:06.1]} 37. cxd5
{[%clk 0:00:16.8]} 37... Ke7 {[%clk 0:01:05.8]} 38. Ke2 {[%clk 0:00:16.9]} 38...
Kd6 {[%clk 0:01:06]} 39. Kd3 {[%clk 0:00:16]} 39... Kc5 {[%clk 0:01:03.2]} 40.
Kc3 {[%clk 0:00:11.7]} 40... Rxd5 {[%clk 0:01:01.7]} 41. Rc4+ {[%clk 0:00:12.4]}
41... Kb6 {[%clk 0:00:55.9]} 42. Rxd5 {[%clk 0:00:13.3]} 42... Rxd5 {[%clk
0:00:56.1]} 43. h4 {[%clk 0:00:14.2]} 43... Rc5 {[%clk 0:00:55.7]} 44. hxg5
{[%clk 0:00:13.9]} 44... hxg5 {[%clk 0:00:54.6]} 45. Kd4 {[%clk 0:00:11.6]}
45... Rxc4+ {[%clk 0:00:54.8]} 46. Kxc4 {[%clk 0:00:12.5]} 46... Kc6 {[%clk
0:00:55.5]} 47. Kd4 {[%clk 0:00:12.6]} 47... b5 {[%clk 0:00:54.1]} 48. f3 {[%clk
0:00:11.9]} 48... Kd6 {[%clk 0:00:53.8]} 49. g3 {[%clk 0:00:10.7]} 49... f5
{[%clk 0:00:51.5]} 50. b3 {[%clk 0:00:10.4]} 50... a4 {[%clk 0:00:47]} 51. b4
{[%clk 0:00:10.5]} 51... a3 {[%clk 0:00:46]} 52. Kc3 {[%clk 0:00:11.1]} 52...
Kd5 {[%clk 0:00:46.4]} 53. g4 {[%clk 0:00:11]} 53... fxg4 {[%clk 0:00:45.9]} 54.
fxg4 {[%clk 0:00:10.9]} 54... a2 {[%clk 0:00:45.1]} 55. Kb2 {[%clk 0:00:10.9]}
55... Kc4 {[%clk 0:00:45.6]} 56. Kxa2 {[%clk 0:00:11.5]} 56... Kxb4 {[%clk
0:00:46]} 57. Kb2 {[%clk 0:00:11.8]} 57... Kc4 {[%clk 0:00:46.5]} 58. Kc2 {[%clk
0:00:11.4]} 58... Kd4 {[%clk 0:00:46.7]} 59. Kb3 {[%clk 0:00:12]} 59... Ke4
{[%clk 0:00:47]} 60. Kb4 {[%clk 0:00:12.9]} 60... Kf4 {[%clk 0:00:47.5]} 61.
Kxb5 {[%clk 0:00:13.8]} 61... Kxg4 {[%clk 0:00:48.4]} 62. Kc4 {[%clk 0:00:14.2]}
62... Kf3 {[%clk 0:00:49.3]} 63. Kd3 {[%clk 0:00:15.1]} 63... g4 {[%clk
0:00:49]} 64. Kd2 {[%clk 0:00:15.1]} 64... Kf2 {[%clk 0:00:48.9]} 0-1